Cogmind - Beta 16.1 @@@ ROGUE MODE // 2026.02.13 @ 19:58:33 Player: alexandrite Result: Destroyed by L-31 Rogue with Katana Performance ------------- Evolutions (1) 500 Regions Visited (4) 800 Robots Destroyed (21) 105 Value Destroyed (653) 653 Prototype IDs (1) 20 Alien Tech Used (0) 0 Bonus (0) 0 TOTAL SCORE: 2078 Bonus ------- None Cogmind --------- Core Integrity 0/400 Matter 300/300 Energy 100/100 System Corruption 0% Temperature Cool (0) Movement Treading (160) Location -9/Storage Parts ------- > --- POWER (1) -------- (None) > --- PROPULSION (3) --- Light Treads > --- UTILITY (3) ------ Small Storage Unit > --- WEAPON (2) ------- Beam Rifle > --- INVENTORY (8) ---- Ion Engine Core Shielding Light Armor Plating Medium Laser Beam Rifle Improved Heavy Laser Heavy Assault Rifle Peak State ------------ > --- POWER ------------ Heavy Ion Engine > --- PROPULSION ------- Aluminum Leg Aluminum Leg Compact Wheel > --- UTILITY ---------- Small Storage Unit Medium Matter Pod Sensor Array > --- WEAPON ----------- Light Assault Rifle EMP Blaster > --- INVENTORY -------- Light Ion Engine Compact Wheel Medium Laser Beam Rifle Improved Heavy Laser Light Assault Rifle Light Assault Rifle [Rating: 13] Favorites ----------- Power Light Ion Engine Engine Light Ion Engine Propulsion Aluminum Leg Treads Light Treads Leg Aluminum Leg Wheel Compact Wheel Flight Unit Flight Unit Utility Small Storage Unit Device Sensor Array Storage Small Storage Unit Processor Targeting Computer Protection Light Armor Plating Weapon Light Assault Rifle Energy Gun Medium Laser Ballistic Gun Light Assault Rifle Launcher EMP Blaster Build | -11 -10 -10 -9 -9 ------- Run | Yrd Mat Min Mat Sto Slots Evolved 2 | . . . 2 . Power . | . . . . . Propulsion 1 | . . . 1 . Utility 1 | . . . 1 . Weapon . | . . . . . Parts Attached 27 | 6 1 2 3 15 Power 4 | 1 . . 1 2 Engine 4 | 1 . . 1 2 Core . | . . . . . Reactor . | . . . . . Propulsion 11 | 2 . 1 1 7 Treads 2 | . . . . 2 Leg 6 | 2 . 1 . 3 Wheel 2 | . . . . 2 Hover . | . . . . . Flight 1 | . . . 1 . Utility 5 | 1 1 1 1 1 Device 1 | . . 1 . . Storage 2 | 1 . . 1 . Processor 1 | . . . . 1 Hackware . | . . . . . Protection 1 | . 1 . . . Artifact . | . . . . . Weapon 7 | 2 . . . 5 Energy Gun 3 | 1 . . . 2 Energy Cannon . | . . . . . Ballistic Gun 3 | 1 . . . 2 Ballistic Cannon . | . . . . . Launcher 1 | . . . . 1 Special Weapon . | . . . . . Impact Weapon . | . . . . . Slashing Weapon . | . . . . . Piercing Weapon . | . . . . . Special Melee Weapon . | . . . . . Unidentified Prototypes 1 | . . . 1 . Parts Lost 19 | . . 1 1 17 Power 3 | . . . . 3 Propulsion 8 | . . . 1 7 Utility 4 | . . 1 . 3 Weapon 4 | . . . . 4 Highest Loss Streak 7 | . . 1 1 7 To Critical Strikes . | . . . . . Average Backups 7 | 3 7 7 7 6 Power 1 | . 1 1 1 1 Propulsion 1 | 1 4 3 2 . Utility . | . 1 1 . . Weapon 3 | . 1 1 4 4 Tool/Special . | . . . . . Unused Backups 11 | . 1 2 . 8 Power 2 | . . . . 2 Propulsion 2 | . . 2 . . Utility 3 | . 1 . . 2 Weapon 4 | . . . . 4 Tool/Special . | . . . . . Average Slot Usage (%) 94 | . 94 92 98 94 Engine 11 | . 14 14 10 10 Treads 3 | . . . . 5 Leg 21 | . 28 28 22 17 Wheel 2 | . . . . 5 Flight 2 | . . . 10 . Device 6 | . . 5 11 6 Storage 19 | . 14 14 21 21 Processor 2 | . . . . 4 Energy Gun 9 | . 14 14 11 6 Ballistic Gun 11 | . 14 14 11 10 Launcher 2 | . . . . 4 Peak Build Rating 13 | 6 7 7 12 13 Average Rating 10 | 5 6 6 10 11 On Entrance 6 | . 6 7 7 11 Avg Prop Armor Cover (%) 5 | . . . 3 6 Naked Turns . | . . . . . Heaviest Build 21 | 11 14 14 19 21 Greatest Support 40 | 20 20 20 20 40 Greatest Overweight (x) 4 | . . . . 4 Average Overweight (x) . | . . . . . Largest Inventory Capacity 8 | 8 8 8 8 8 Average Capacity 7 | 7 8 8 8 8 Most Carried 8 | 6 8 8 8 8 Average Carried 7 | 3 7 7 7 6 Final Capacity 8 | 8 8 8 8 8 Final Carried 8 | 6 8 8 8 7 Class Distribution -------------------- 79% | Mutant 20% | Scavenger-Mutant Dominant Class ---------------- Mutant | -10/Materials Mutant | -10/Mines Mutant | -9/Materials Mutant | -9/Storage Resources | -11 -10 -10 -9 -9 ----------- Run | Yrd Mat Min Mat Sto Matter Collected 691 | 256 . 141 41 253 Remotely . | . . . . . Salvage Created 772 | . . 134 92 546 Parts 56 | . . 13 8 35 Haulers Intercepted . | . . . . . Recyclers Shooed . | . . . . . Parts Field Recycled . | . . . . . Retrieved Matter . | . . . . . Parts Self-Destructed . | . . . . . Prevented . | . . . . . Parts Restored . | . . . . . Kills | -11 -10 -10 -9 -9 ------- Run | Yrd Mat Min Mat Sto Combat Hostiles Destroyed 20 | . . 5 4 11 Guns 17 | . . 5 4 8 AOE 2 | . . . . 2 Classes Destroyed 5 | . . 2 1 2 Watcher 1 | . . . . 1 Swarmer 6 | . . 3 3 . Grunt 8 | . . 2 . 6 Duelist 1 | . . . . 1 Sentry 5 | . . . 1 4 Best Kill Streak 3 | . . 3 3 3 Combat Bots Only 3 | . . 3 3 3 Max Kills in Single Turn 2 | . . 2 1 1 Gunslinging . | . . . . . Exploded 1 | . . . . 1 Melee . | . . . . . Uniques/NPCs Destroyed . | . . . . . Combat | -11 -10 -10 -9 -9 -------- Run | Yrd Mat Min Mat Sto Hostile Shots Fired 181 | . 21 28 23 109 Missed 52 | . 12 6 8 26 Hits 129 | . 9 22 15 83 Melee 15 | . . . . 15 Projectile 114 | . 9 22 15 68 Critical Strikes 4 | . . . 1 3 Damage Taken 1913 | . 69 274 173 1397 Core 478 | . 18 55 54 351 Absorbed by Shields . | . . . . . Core Remaining (%) 85 | 100 . 70 . . Volleys Fired 67 | . . 12 11 44 Largest 2 | . . 2 2 2 Hottest 112 | . . 70 70 112 Shots Fired 133 | . . 24 22 87 Gun 125 | . . 24 22 79 Cannon . | . . . . . Launcher 8 | . . . . 8 Special . | . . . . . Kinetic 82 | . . 12 11 59 Thermal 43 | . . 12 11 20 Explosive . | . . . . . Electromagnetic 8 | . . . . 8 Robot Hit Streak 19 | . . 6 7 19 Robot Miss Streak 4 | . . 1 2 4 Penetration Max . | . . . . . Secondary Targets 1 | . . . 1 . Max Gunslinging Chain 1 | . . . 1 . Shots Hit Robots 94 | . . 16 16 62 Core Hits 42 | . . 10 6 26 Critical Kills . | . . . . . Critical Parts Destroyed 1 | . . . . 1 Critical Strikes 3 | . . . 1 2 Burn 2 | . . . 1 1 Destroy 1 | . . . . 1 Melee Attacks . | . . . . . Impact . | . . . . . Slashing . | . . . . . Piercing . | . . . . . Sneak Attacks . | . . . . . Combat Hostiles . | . . . . . Follow-up Attacks . | . . . . . Damage Inflicted 1152 | . . 187 160 805 Guns 892 | . . 187 160 545 Cannons . | . . . . . Explosions 260 | . . . . 260 Melee . | . . . . . Ramming . | . . . . . Kinetic 480 | . . 76 62 342 Thermal 412 | . . 111 98 203 Explosive . | . . . . . Electromagnetic 260 | . . . . 260 Impact . | . . . . . Slashing . | . . . . . Piercing . | . . . . . Highest Corruption . | . . . . . Average Corruption . | . . . . . Corruption Purged . | . . . . . Corruption Blocked . | . . . . . Overload Shots . | . . . . . Overflow Damage 7 | . . . . 7 Projectiles . | . . . . . Explosions 7 | . . . . 7 Melee . | . . . . . Knockbacks . | . . . . . Impact . | . . . . . Kinetic . | . . . . . Secondary . | . . . . . Self-Inflicted Damage 66 | . . . . 66 Shots 4 | . . . . 4 Rammed . | . . . . . Targets Rammed . | . . . . . Kicked . | . . . . . Crushed . | . . . . . Highest Temperature 173 | . . 145 96 173 Average Temperature 41 | . . 53 35 35 Received Heat Transfer 561 | . . 129 63 369 Siege Activations . | . . . . . Martial Activations . | . . . . . Shielding Activations . | . . . . . Robots Disrupted . | . . . . . Combat Hostiles . | . . . . . Robots Corrupted . | . . . . . Combat Hostiles . | . . . . . Parts Fried 2 | . . . . 2 Impact Corruptions . | . . . . . Robots Melted 1 | . . . . 1 Combat Hostiles 1 | . . . . 1 Parts Melted 3 | . . 2 . 1 Heat Transferred 1295 | . . 333 370 592 Parts Sabotaged . | . . . . . Parts Stolen . | . . . . . Parts Stripped . | . . . . . Power Chain Reactions 2 | . . . . 2 Alert | -11 -10 -10 -9 -9 ------- Run | Yrd Mat Min Mat Sto Maximum Alert Level . | . . . . . Low Security (%) 100 | 100 100 100 100 100 Level 1 . | . . . . . Level 2 . | . . . . . Level 3 . | . . . . . Level 4 . | . . . . . Level 5 . | . . . . . High Security . | . . . . . Max Security . | . . . . . Peak Influence 115 | . 5 70 70 115 Initial 10 | . . . . 10 Average 21 | . . 14 11 32 Influence Increases 604 | . 5 120 102 377 Destroy 0b10 Robot/C 400 | . . 100 80 220 Destroy 0b10 Robot/NC 5 | . . . . 5 Destroy Leader 112 | . . 20 20 72 Successful Hack 22 | . 5 . 2 15 Disable Machine 30 | . . . . 30 Destroy Structure 20 | . . . . 20 Lose Combat Pursuer 15 | . . . . 15 Influence Decreases 604 | . 5 120 76 403 Entered New Map 16 | . . . . 16 Time Decay 454 | . 5 110 66 273 Lost Part 134 | . . 10 10 114 Squads Dispatched 2 | . . . . 2 Investigation . | . . . . . Extermination . | . . . . . Reinforcement 2 | . . . . 2 Assault . | . . . . . Garrison . | . . . . . Intercept . | . . . . . Searches Triggered . | . . . . . Construction Impeded . | . . . . . Haulers Reinforced . | . . . . . Active Scanning Responses . | . . . . . Cargo Convoy Interrupts . | . . . . . Stealth | -11 -10 -10 -9 -9 --------- Run | Yrd Mat Min Mat Sto Distress Signals 1 | . . . 1 . Communications Jammed . | . . . . . Distress Signals . | . . . . . Times Spotted 36 | . 3 5 7 21 Peak Tracking Total 5 | . 3 3 3 5 Tactical Retreats 1 | . . . . 1 Traps | -11 -10 -10 -9 -9 ------- Run | Yrd Mat Min Mat Sto Traps Triggered 3 | . . . . 3 Indirectly . | . . . . . Trap Hack Attempts . | . . . . . Triggered . | . . . . . Disarmed . | . . . . . Reprogrammed . | . . . . . Reused . | . . . . . Traps Extracted . | . . . . . Installed . | . . . . . Triggered . | . . . . . Machines | -11 -10 -10 -9 -9 ---------- Run | Yrd Mat Min Mat Sto Machines Disabled 2 | . . . . 2 Max in Single Turn 1 | . . . . 1 Machines Repaired . | . . . . . Machines Dismantled . | . . . . . Machines Sabotaged . | . . . . . Overloaded Fab Kills . | . . . . . Hacking | -11 -10 -10 -9 -9 --------- Run | Yrd Mat Min Mat Sto Machines Accessed 10 | . 2 . 3 5 Terminals 7 | . 2 . 1 4 Fabricators . | . . . . . Repair Stations 1 | . . . 1 . Recycling Units 1 | . . . 1 . Scanalyzers . | . . . . . Garrison Access 1 | . . . . 1 Total Hacks 21 | . 5 . 7 9 Successful 9 | . 1 . 3 5 Failed 12 | . 4 . 4 4 Catastrophic 3 | . . . 2 1 Database Lockouts . | . . . . . Manual 5 | . . . 2 3 Terminals 16 | . 5 . 3 8 Fabricators . | . . . . . Repair Stations 2 | . . . 2 . Recycling Units 2 | . . . 2 . Scanalyzers . | . . . . . Garrison Access 1 | . . . . 1 Terminal Hacks 6 | . 1 . 1 4 Record 4 | . . . 1 3 Open Door 1 | . . . . 1 Zone Layout 1 | . 1 . . . Fabricator Hacks . | . . . . . Repair Station Hacks 1 | . . . 1 . Scan Component 1 | . . . 1 . Recycling Unit Hacks 1 | . . . 1 . Retrieve Matter 1 | . . . 1 . Scanalyzer . | . . . . . Garrison Access Hacks 1 | . . . . 1 Unlock Access 1 | . . . . 1 Unauthorized Hacks . | . . . . . Terminals . | . . . . . Fabricators . | . . . . . Repair Stations . | . . . . . Recycling Units . | . . . . . Scanalyzers . | . . . . . Garrison Access . | . . . . . Data Cores Recovered . | . . . . . Used . | . . . . . Hacking Detections 7 | . 2 . 3 2 Full Trace Events . | . . . . . Feedback Events . | . . . . . Feedback Blocked . | . . . . . Robot Schematics Acquired . | . . . . . Robots Built . | . . . . . Authchips . | . . . . . Time . | . . . . . Total Robot Build Rating . | . . . . . Part Schematics Acquired . | . . . . . Parts Built . | . . . . . Authchips . | . . . . . Time . | . . . . . Total Part Build Rating . | . . . . . Part Studies Acquired . | . . . . . Parts Repaired . | . . . . . Time . | . . . . . Parts Recycled . | . . . . . Recycled Matter . | . . . . . Retrieved Matter . | . . . . . Retrieved Components . | . . . . . Parts Scanalyzed . | . . . . . Part Schematics Acquired . | . . . . . Parts Damaged . | . . . . . Bothacking | -11 -10 -10 -9 -9 ------------ Run | Yrd Mat Min Mat Sto Used RIF Installer . | . . . . . Robots Hacked . | . . . . . Non-combat . | . . . . . Combat . | . . . . . Robot Hacks Applied . | . . . . . Relay Couplers Released . | . . . . . Fabnet Peak Effective % . | . . . . . Robots Rewired . | . . . . . Allies Hacked . | . . . . . Hacks Repelled . | . . . . . Allies | -11 -10 -10 -9 -9 -------- Run | Yrd Mat Min Mat Sto Total Allies . | . . . . . Largest Group . | . . . . . Highest-Rated Group . | . . . . . Highest-Rated Ally . | . . . . . Total Orders . | . . . . . Ally Attacks . | . . . . . Total Damage . | . . . . . Kills . | . . . . . Allies Corrupted . | . . . . . Allies Melted . | . . . . . Intel | -11 -10 -10 -9 -9 ------- Run | Yrd Mat Min Mat Sto Active Infowar (turns) 1219 | . . 167 459 593 Sensors 1219 | . . 167 459 593 Robot Analysis Total . | . . . . . Derelict Logs Recovered 2 | . . 2 . . Drone Launches . | . . . . . Drone Recoveries . | . . . . . Exploration | -11 -10 -10 -9 -9 ------------- Run | Yrd Mat Min Mat Sto Turns Passed 2154 | 87 130 410 459 1068 Spaces Moved 1335 | 66 104 300 305 560 Core 10 | 9 . . . 1 Treads 115 | . . . . 115 Legs 1194 | 57 104 300 305 428 Wheels 16 | . . . . 16 Hover . | . . . . . Flight . | . . . . . Fastest Speed 50 | 50 120 120 120 100 Average Speed 132 | 110 120 120 120 150 Slowest Speed 260 | 120 120 120 120 260 Overloaded Moves . | . . . . . Propulsion Burnouts . | . . . . . Robots Hopped . | . . . . . Potential Cave-ins . | . . . . . Cave-ins Triggered . | . . . . . Exploration Rate (%) 33 | 5 22 61 23 58 Regions Visited 4 Branch Regions 2 Pre-discovered Areas 1 | . . 1 . . Known Exits Taken 1 | . . . 1 . Unknown Exits Taken 3 | 1 1 1 . . Scrap Searched 1 | . . 1 . . Spaces Dug . | . . . . . Terrain Destroyed 29 | . . . . 29 Melee . | . . . . . Projectile . | . . . . . AOE 29 | . . . . 29 Terrain Rammed . | . . . . . Walls Destroyed . | . . . . . Machines Disabled . | . . . . . Actions | -11 -10 -10 -9 -9 --------- Run | Yrd Mat Min Mat Sto Total 1597 | 77 109 330 378 703 Wait 136 | . 1 11 57 67 Move 1331 | 65 103 299 304 560 Hop . | . . . . . Pick Up 23 | 6 3 3 2 9 Fast Attach 17 | 6 1 . 1 9 Attach 12 | . . 1 2 9 Detach . | . . . . . Swap 4 | . . 1 . 3 Drop 7 | . 1 3 1 2 Fire 67 | . . 12 11 44 Melee . | . . . . . Ram . | . . . . . Kick . | . . . . . Crush . | . . . . . Escape Stasis . | . . . . . Rewire . | . . . . . Trap . | . . . . . Miscellaneous . | . . . . . Route ------- -11/Scrapyard -10/Materials -10/Mines -9/Materials (discovered 6 exits: *Mat x3 / *Min x2 / *Sto) -9/Storage (discovered 1 exit: Gar) History --------- Turn | Location | Event 7 | -11/Scrapyard | Discovered new exit (range 16) 88 | -11/Scrapyard | Entered Materials 118 | -10/Materials | Discovered new exit (range 14) 218 | -10/Materials | Entered Mines 309 | -10/Mines | Discovered new exit (range 16) 317 | -10/Mines | Build established: Mutant 333 | -10/Mines | Learned 8 Materials zone layouts 486 | -10/Mines | Learned location of Recycling (-9) 628 | -10/Mines | Entered Materials 628 | -9/Materials | Evolved 2 slots: Propulsion x1, Utility x1 629 | -9/Materials | Identified exit to Mines 629 | -9/Materials | Identified exit to Materials 629 | -9/Materials | Identified exit to Storage 984 | -9/Materials | Discovered exit to Materials (range 13) 1087 | -9/Materials | Entered Storage 1556 | -9/Storage | Lost 3 parts (2n1w) 1689 | -9/Storage | Core integrity fell below 50% 1744 | -9/Storage | Lost 7 parts (2p3n1u1w) 1983 | -9/Storage | Build established: Scavenger-Mutant 2125 | -9/Storage | Identified exit to Garrison 2131 | -9/Storage | Core integrity fell below 20% 2155 | -9/Storage | Destroyed by L-31 Rogue with Katana Last Messages --------------- 02120_ Targeting Computer destroyed. 02122_ K-01 Serf collects debris. 02122_ R-06 Scavenger collects Wheel. 02122_ Ion Engine destroyed. 02125_ Connecting with Garrison Access... [Achievement: Novice Programmer] >>Unlock Access door unlocked. 02125_ EXIT=UNLOCKED: GARRISON 02125_ Connecting with Garrison Access... 02125_ R-06 Scavenger collects Lgt. Ion Engine. 02126_ Imp. Aluminum Leg destroyed. 02128_ Lgt. Treads severed. 02130_ K-01 Serf destroyed. 02131_ R-06 Scavenger collects Wheel. 02132_ K-01 Serf collects debris. 02132_ Beam Rifle destroyed. 02132_ Med. Matter Pod destroyed. 02134_ R-06 Scavenger collects Lgt. Ion Engine. 02137_ R-06 Scavenger collects Wheel. Map ----- +----------------------------------------------------+ | ???????????????????????????????????# | | ???????????????????????????????????# | | ???????????????????????????????????# ####### | | ???????????????????????????????????## ######## | | ????????????????????????????????????# # | | ????????????????????????????????????# # | | ????????????????????????????????????# # """""" | | ????????????????????????????????????# + "????" | | ????????????????????????????????????# # "????" | | ????????????????????????????????????# # """""" | | ????????????????????????????????????#% # | | ????????????????????????????????????# # | | ????????????????# #####+########### # | | ????????????????# =%= ###+#### | | ????????????????# #?# #??? | | ????????????????# #?# #??? | | ??????????????????########## #####">"####?# #??# | | ???????????????????????????# #???#"G"#????# #??# | | ???????????????????????????# #???# " #????# #??# | | ?????????????????###########Y#???#####????# #### | | ?????????????????# """ """ + #????????????# + | | ?????????????????# """ """g# #????????????###### | | ?????????????????# """ """g# #?????????????????# | | ?????????????????# # #?????????????????# | | ?????????????????# lu # #?????????????????# | | ?????????????????# @ # #??????############ | | ?????????????????# # +??????# | | ?????????????????# # #??????# | | ?????????????????#####+##### #??????# % | | ????????????????????? ????? ???????######+##### | | ????????????????????" ?????#????????## # | | ???????????????????#T ???????????????# # | | ???????????????????#"????????????????## # | | ???????????????????##?????????????????#""" # | | ??????????????????????????????????????#""" # | | ??????????????????????????????????????#""" ! # | | ??????????????????????????????????????#""" # | | ??????????????????????????????????????#""" !+ | | ??????????????????????????????????????# # | | ??????????????????????????????????????###"T"#### | | ????????????????????????????????????????#"""#??? | | ????????????????????????????????????????#####??? | | ???????????????????????????????????????????????? | | ???????????????????????????????????????????????? | | ???????????????????????????????????????????????? | | ???????????????????????????????????????????????? | | ???????????????????????????????????????????????? | | ???????????????????????????????????????????????? | | ???????????????????????????????????????????????? | | ???????????????????????????????????????????????? | +----------------------------------------------------+ Best States ------------- Heat Dissipation 28 Energy Generation 14 Energy Capacity 280 Matter Stores 400 Matter Capacity 400 Sight Range 16 Robot Scan Range 14 Terrain Scan Density 10 Armor Coverage 150 Evasion (%) 55 Targeting Accuracy 5 Recoil Reduction 2 Item Schematics ----------------- None Robot Schematics ------------------ None Fabricated ------------ Nothing Repaired ---------- Nothing Studied --------- None Alien Tech Used ----------------- None Achievements -------------- It's Just You Novice Programmer Challenges ------------ None Game ------ Seed HoverActiveVibroblade Manual? 0 Play Time 00:53:35 Cumulative 2.9 hours Start 2026.02.13 @ 13:14:04 End 2026.02.13 @ 19:58:33 Sessions 6 Manual Loads 0 Difficulty Rogue Special Mode None Game No. 11 Rogue 7 Adventurer 4 Explorer 0 Win Type - Total 0 Types 0/0/0/0/0/0/0/0/0/0 Lore% 0 Gallery% 4 Achievement% 4 Wizard Run 0 Options --------- Layout 0 ASCII 0 Keyboard 1 Movement Numpad Keybinds 0 Fullscreen 1 Font 24/Smallcaps Map View 113x50 Zoom Use 0% Tactical HUD 1 Map Filters NONE Filters NONE Steam 1 RUN: 612e1bca-202b-4b87-87ae-5356496354aa